bitfinex/quotes_ETHUSD_20250914
["timestamp","ask_amount","ask_price","bid_price","bid_amount"]
[1757828667688,2.76836575,4675.4,4675.3,0.001]
[1757828667981,6.20482931,4675.4,4675.3,0.001]
[1757828668185,7.33426139,4675.4,4675.3,0.001]
[1757828670849,7.01405006,4675.4,4675.3,0.001]
[1757828671693,7.33434866,4675.4,4675.3,0.001]
[1757828672797,7.33436914,4675.4,4675.3,0.001]
[1757828674868,6.40506914,4675.4,4675.3,0.001]
[1757828675307,7.33436914,4675.4,4675.3,0.001]
[1757828675466,10.33436914,4675.4,4675.3,0.001]
[1757828675812,10.79546298,4675.4,4675.3,0.001]
[1757828680299,11.3718303,4675.4,4675.3,0.001]
[1757828682007,11.37172204,4675.4,4675.3,0.001]
[1757828683697,11.37172204,4675.4,4675.3,1e-08]
[1757828683878,10.79535472,4675.4,4675.3,1e-08]
[1757828684500,11.37147294,4675.4,4675.3,0.00100001]
[1757828685967,2.13899167,4675.1,4675.0,1e-08]
[1757828686271,9.01011019,4675.1,4675.0,1e-08]
[1757828686601,10.25071019,4675.1,4675.0,1e-08]
[1757828686792,10.79742038,4675.1,4675.0,1e-08]
[1757828687793,9.55682038,4675.1,4675.0,0.30560001]
[1757828688211,9.09572654,4675.1,4675.0,0.30560001]
[1757828689775,9.39462654,4675.1,4675.0,1e-08]
[1757828690014,10.32192038,4675.1,4675.0,1e-08]
[1757828690219,10.79742038,4675.1,4675.0,1e-08]
[1757828690597,7.24642038,4675.1,4675.0,1e-08]
[1757828690794,10.33632654,4675.1,4675.0,1e-08]
[1757828690992,10.79742038,4675.1,4675.0,1e-08]
[1757828691411,10.79738721,4675.1,4675.0,1e-08]
[1757828691615,10.32188721,4675.1,4675.0,1e-08]
[1757828693300,6.18470071,4675.1,4675.0,1e-08]
[1757828693488,9.85569311,4675.1,4675.0,1e-08]
[1757828694637,9.85559192,4675.1,4675.0,1e-08]
[1757828695300,9.55669192,4675.1,4675.0,0.30220001]
[1757828699025,9.55673996,4675.1,4675.0,0.30220001]
[1757828701114,9.55873996,4675.1,4675.0,0.30220001]
[1757828703415,6.00773996,4675.1,4675.0,0.30220001]
[1757828703617,9.55882845,4675.1,4675.0,0.30220001]
[1757828703933,9.55904568,4675.1,4675.0,0.30220001]
[1757828704335,10.1351395,4675.1,4675.0,0.30220001]
[1757828704723,6.5841395,4675.1,4675.0,0.79280001]
[1757828705050,9.55904568,4675.1,4675.0,1.24630001]
[1757828705454,9.55904568,4675.1,4675.0,0.79280001]
[1757828705637,10.1351395,4675.1,4675.0,0.30220001]
[1757828706746,10.4208395,4675.1,4675.0,1e-08]
[1757828707229,10.1351395,4675.1,4675.0,1e-08]
[1757828708317,10.1351395,4675.1,4675.0,0.30220001]
[1757828708943,9.09795184,4675.1,4675.0,0.30220001]
[1757828709141,10.13662414,4675.1,4675.0,0.30220001]
[1757828710562,9.55958397,4675.1,4675.0,0.30220001]
[1757828711631,6.00858397,4675.1,4675.0,0.30220001]
[1757828711833,9.55958397,4675.1,4675.0,0.30220001]
[1757828714467,11.20158397,4675.1,4675.0,0.30220001]
[1757828717089,11.96838397,4675.1,4675.0,1e-08]
[1757828717260,12.40338397,4675.1,4675.0,1e-08]
[1757828718263,11.95028397,4675.1,4675.0,1e-08]
[1757828718458,11.20158397,4675.1,4675.0,1e-08]
[1757828718659,8.20158397,4675.1,4675.0,1.21620001]
[1757828718896,8.11596762,4675.1,4675.0,1.21620001]
[1757828720062,4.56496762,4675.1,4675.0,1.21620001]
[1757828720266,7.65433549,4675.1,4675.0,1.21620001]
[1757828720710,7.6543501,4675.1,4675.0,1.21620001]
[1757828724501,4.1033501,4675.1,4675.0,1.21620001]
[1757828724699,7.33299167,4675.1,4675.0,1.21620001]
[1757828724897,7.4531206,4675.1,4675.0,1.21620001]
[1757828725073,7.65325889,4675.1,4675.0,1.21620001]
[1757828726380,7.65319908,4675.1,4675.0,1.21620001]
[1757828728595,7.65319908,4675.1,4675.0,0.76900001]
[1757828730199,4.10319908,4675.1,4675.0,0.76900001]
[1757828730398,7.33299167,4675.1,4675.0,0.76900001]
[1757828730608,7.65319908,4675.1,4675.0,0.76900001]
[1757828733812,7.65319169,4675.1,4675.0,0.76900001]
[1757828734910,7.65319169,4675.1,4675.0,0.29770001]
[1757828735692,7.65319169,4675.1,4675.0,0.76900001]
[1757828735892,7.65319169,4675.1,4675.0,1.21620001]
[1757828736687,1.96420002,4675.1,4675.0,0.76900001]
[1757828736887,1.644,4675.1,4675.0,0.76900001]
[1757828737119,5.194,4675.1,4675.0,1.21620001]
[1757828737418,5.51420002,4675.1,4675.0,1.34825914]
[1757828738414,5.31406173,4675.1,4675.0,1.34825914]
[1757828738718,5.194,4675.1,4675.0,1.34825914]
[1757828738923,5.31406173,4675.1,4675.0,1.34825914]
[1757828739821,1.76406173,4675.1,4675.0,1.34825914]
[1757828740124,5.194,4675.1,4675.0,1.36964951]
[1757828740318,5.31404564,4675.1,4675.0,1.36964951]
[1757828740817,5.194,4675.1,4675.0,1.36964951]
[1757828741724,5.31404564,4675.1,4675.0,1.36964951]
[1757828743640,5.194,4675.1,4675.0,1.36964951]
[1757828743828,5.31404564,4675.1,4675.0,1.36964951]
[1757828744418,5.31404564,4675.1,4675.0,0.92244951]
[1757828744619,5.31404564,4675.1,4675.0,1.34825914]
[1757828744831,5.194,4675.1,4675.0,1.34825914]
[1757828745614,5.31404564,4675.1,4675.0,1.34825914]
[1757828745847,1.644,4675.1,4675.0,1.58237653]
[1757828746011,5.193,4675.1,4675.0,1.58237653]
[1757828746648,5.193,4675.1,4675.0,2.37437653]
[1757828746950,5.193,4675.1,4675.0,2.35298616]
[1757828749649,5.193,4675.1,4675.0,2.37437653]
[1757828749852,5.193,4675.1,4675.0,4.51341396]
[1757828750147,5.193,4675.1,4675.0,2.35298616]
[1757828751168,5.495,4675.1,4675.0,0.33088616]
[1757828751375,8.53829167,4675.1,4675.0,1e-08]
[1757828751528,8.65825217,4675.1,4675.0,1e-08]
[1757828751854,8.85819015,4675.1,4675.0,1e-08]
[1757828752053,8.94379111,4675.1,4675.0,1e-08]
[1757828752226,8.94380565,4675.1,4675.0,1e-08]
[1757828756748,5.39480321,4675.1,4675.0,1e-08]
[1757828756922,8.94380321,4675.1,4675.0,1e-08]
[1757828757462,8.94379979,4675.1,4675.0,1e-08]
[1757828759140,2.04950812,4675.1,4675.0,1e-08]
[1757828759374,5.193,4675.1,4675.0,1e-08]
[1757828759579,5.31295464,4675.1,4675.0,1e-08]
[1757828760479,7.45192336,4675.1,4675.0,1e-08]
[1757828761042,5.31293169,4675.1,4675.0,1e-08]
[1757828761939,7.45192336,4675.1,4675.0,1e-08]
[1757828762140,7.74432336,4675.1,4675.0,1e-08]
[1757828762578,5.60533169,4675.1,4675.0,1e-08]
[1757828763179,7.74432336,4675.1,4675.0,1e-08]
[1757828764085,7.94422092,4675.1,4675.0,1e-08]
[1757828764289,4.10282092,4675.1,4675.0,1e-08]
[1757828764593,7.33199167,4675.1,4675.0,1e-08]
[1757828764757,7.65182092,4675.1,4675.0,1e-08]
[1757828766894,7.65183348,4675.1,4675.0,1e-08]
[1757828767102,5.51284181,4675.1,4675.0,1e-08]
[1757828767905,5.51284181,4675.1,4675.0,1.21760001]
[1757828768093,5.31293169,4675.1,4675.0,1.34979909]
[1757828768293,1.644,4675.1,4675.0,1.34979909]
[1757828768493,5.193,4675.1,4675.0,0.91419909]
[1757828769102,5.193,4675.1,4675.0,1.34979909]
[1757828770508,5.193,4675.1,4675.0,1.37118946]
[1757828770712,5.2994,4675.1,4675.0,1.37118946]
[1757828771607,1.644,4675.1,4675.0,3.70889324]
[1757828771781,5.193,4675.1,4675.0,3.70889324]
[1757828773216,1.644,4675.1,4675.0,3.70889324]
[1757828773421,5.193,4675.1,4675.0,3.70889324]
[1757828775226,5.193,4675.1,4675.0,1.56985581]
[1757828775924,1.644,4675.1,4675.0,1.56985581]
[1757828776090,5.193,4675.1,4675.0,3.70889324]
[1757828781700,5.193,4675.1,4675.0,3.72279324]
[1757828781896,1.644,4675.1,4675.0,4.51479324]
[1757828782101,3.551,4675.1,4675.0,4.49340975]
[1757828782431,3.551,4675.1,4675.0,5.13519717]
[1757828783197,0.002,4675.1,4675.0,4.93652394]
[1757828783434,0.002,4675.1,4675.0,5.13515828]
[1757828783942,0.002,4675.1,4675.0,5.13514983]
[1757828788649,0.002,4675.1,4675.0,4.49336241]
[1757828791821,0.002,4675.1,4675.0,4.29473652]
[1757828792021,0.002,4675.1,4675.0,4.31612689]
[1757828795549,0.002,4675.1,4675.0,4.29473652]
[1757828795859,0.002,4675.1,4675.0,3.84523652]
[1757828796363,0.002,4675.1,4675.0,4.04383535]
[1757828796732,0.002,4675.1,4675.0,3.57563535]
[1757828798839,0.002,4675.1,4675.0,3.57572269]
[1757828800828,0.002,4675.1,4675.0,4.05412269]
[1757828803973,0.002,4675.1,4675.0,3.57572269]
[1757828806090,1.2255,4675.1,4675.0,3.26192269]
[1757828806749,0.7374,4675.1,4675.0,3.26192269]
[1757828808994,1.2255,4675.1,4675.0,0.19868618]
[1757828809580,1.2255,4675.1,4675.0,2.33772361]
[1757828810467,0.2982,4675.1,4675.0,2.35911398]
[1757828812490,0.002,4675.1,4675.0,2.35911398]
[1757828812664,0.002,4675.1,4675.0,3.12787672]
[1757828814262,0.002,4675.1,4675.0,2.35911398]
[1757828814848,0.002,4675.1,4675.0,3.45921398]
[1757828817084,0.002,4675.1,4675.0,4.17992781]
[1757828826299,0.002,4675.1,4675.0,3.72662781]
[1757828829972,0.002,4675.1,4675.0,3.26052781]
[1757828830310,0.002,4675.1,4675.0,4.52811853]
[1757828830604,0.002,4675.1,4675.0,4.50672816]
[1757828831504,0.7792,4675.1,4675.0,4.19862816]
[1757828831705,1.2523,4675.1,4675.0,4.19862816]
[1757828833087,0.7736,4675.1,4675.0,4.19862816]
[1757828833505,1.2523,4675.1,4675.0,1e-08]
[1757828840130,4.7993,4675.1,4675.0,1e-08]
[1757828843909,0.7792,4675.1,4675.0,1e-08]
[1757828844108,3.549,4675.1,4675.0,0.29920001]
[1757828844335,3.549,4675.1,4675.0,2.43823744]
[1757828844533,3.549,4675.1,4675.0,2.92223744]
[1757828845042,0.002,4675.1,4675.0,4.75141988]
[1757828848134,0.3152,4675.1,4675.0,3.50461988]
[1757828848438,0.3152,4675.1,4675.0,3.52601025]
[1757828848625,0.002,4675.1,4675.0,3.52601025]
[1757828849255,0.002,4675.1,4675.0,3.82521025]
[1757828856788,0.3152,4675.1,4675.0,3.52601025]
[1757828857793,0.002,4675.1,4675.0,3.50461988]
[1757828859255,0.002,4675.1,4675.0,3.82521025]
[1757828863587,0.002,4675.1,4675.0,4.77281025]
[1757828863786,0.002,4675.1,4675.0,4.75141988]
[1757828863979,0.002,4675.1,4675.0,4.28781988]
[1757828864179,0.002,4675.1,4675.0,3.82521025]
[1757828865392,0.002,4675.1,4675.0,3.52601025]
[1757828865591,0.002,4675.1,4675.0,3.50461988]
[1757828867995,0.002,4675.1,4675.0,3.82131025]
[1757828868394,0.002,4675.1,4675.0,4.29851025]
[1757828868592,0.002,4675.1,4675.0,4.76001025]
[1757828868891,0.002,4675.1,4675.0,4.73861988]
[1757828873000,0.002,4675.1,4675.0,4.27711988]
[1757828873209,0.002,4675.1,4675.0,3.52601025]
[1757828874992,0.3059,4675.1,4675.0,3.50461988]
[1757828877185,1.2272,4675.1,4675.0,2.93103744]
[1757828879502,0.7444,4675.1,4675.0,2.93103744]
[1757828879681,0.002,4675.1,4675.0,3.22903744]
[1757828879888,0.002,4675.1,4675.0,4.20203744]
[1757828881199,0.002,4675.1,4675.0,3.72763744]
[1757828881405,0.002,4675.1,4675.0,4.2535301]
[1757828881726,0.002,4675.1,4675.0,3.9555301]
[1757828882818,0.002,4675.1,4675.0,4.2535301]
[1757828885818,0.002,4675.1,4675.0,5.24792047]
[1757828886124,0.002,4675.1,4675.0,5.2265301]
[1757828888118,0.002,4675.1,4675.0,5.31209901]
[1757828889124,0.002,4675.1,4675.0,4.83769901]
[1757828889844,0.002,4675.1,4675.0,4.33909901]
[1757828889997,0.002,4675.1,4675.0,4.36048938]
[1757828890750,0.002,4675.1,4675.0,4.04109901]
[1757828892831,0.002,4675.1,4675.0,4.83488938]
[1757828893058,0.002,4675.1,4675.0,5.31209901]
[1757828895655,0.002,4675.1,4675.0,8.85809901]
[1757828897054,0.002,4675.1,4675.0,8.85559901]
[1757828898747,0.002,4675.1,4675.0,8.38369901]
[1757828904591,0.002,4675.1,4675.0,7.88509901]
[1757828909547,0.002,4675.1,4675.0,8.33909901]
[1757828910066,0.002,4675.1,4675.0,7.88509901]
[1757828911368,0.002,4675.1,4675.0,8.81099901]
[1757828911870,0.002,4675.1,4675.0,8.33909901]
[1757828912563,0.002,4675.1,4675.0,7.88509901]
[1757828913869,0.002,4675.1,4675.0,8.81099901]
[1757828914689,0.002,4675.1,4675.0,11.33909901]
[1757828914882,0.002,4675.1,4675.0,12.09105332]
[1757828915451,0.002,4675.1,4675.0,13.930759]
[1757828916880,0.002,4675.1,4675.0,13.93065943]
[1757828920279,0.002,4675.1,4675.0,13.93057971]
[1757828921800,0.002,4675.1,4675.0,13.1786254]
[1757828923220,0.002,4675.1,4675.0,12.7246254]
[1757828923384,0.002,4675.1,4675.0,12.4266254]
[1757828924117,0.002,4675.1,4675.0,12.7249254]
[1757828924804,0.002,4675.1,4675.0,12.8313254]
[1757828929923,0.002,4675.1,4675.0,13.2820254]
[1757828930218,0.002,4675.1,4675.0,13.7227254]
[1757828931145,0.002,4675.1,4675.0,13.72267871]
[1757828936417,0.002,4675.1,4675.0,13.28197871]
[1757828936836,0.002,4675.1,4675.0,12.83127871]
[1757828939248,0.002,4675.1,4675.0,12.53297871]
[1757828939758,0.002,4675.1,4675.0,12.53315912]
[1757828940258,0.002,4675.1,4675.0,12.82225912]
[1757828941884,0.002,4675.1,4675.0,12.8223462]
[1757828944872,0.2954,4675.1,4675.0,12.5332462]
[1757828945067,0.7601,4675.1,4675.0,12.5332462]
[1757828945566,1.2363,4675.1,4675.0,10.71475354]
[1757828945790,1.2363,4675.1,4675.0,9.07375354]
[1757828946354,1.2363,4675.1,4675.0,9.86575354]
[1757828946768,1.2363,4675.1,4675.0,9.66700635]
[1757828950688,1.2363,4675.1,4675.0,3.98396892]
[1757828950892,1.36013,4675.1,4675.0,0.98396892]
[1757828952566,1.36013,4675.1,4675.0,0.08556892]
[1757828952890,1.36013,4675.1,4675.0,1e-08]
[1757828953091,5.14012167,4675.1,4675.0,1e-08]
[1757828953490,5.26029195,4675.1,4675.0,1e-08]
[1757828953697,5.345881,4675.1,4675.0,1e-08]
[1757828954283,5.54570165,4675.1,4675.0,1e-08]
[1757828955501,5.345881,4675.1,4675.0,1e-08]
[1757828956908,5.34535948,4675.1,4675.0,1e-08]
[1757828957402,8.89035948,4675.1,4675.0,1e-08]
[1757828957977,5.34535948,4675.1,4675.0,1e-08]
[1757828958169,8.89035948,4675.1,4675.0,1e-08]
[1757828959479,8.77071072,4675.1,4675.0,1e-08]
[1757828970403,8.89021134,4675.1,4675.0,1e-08]
[1757828971521,8.89023972,4675.1,4675.0,1e-08]
[1757828972402,4.88053972,4675.1,4675.0,1e-08]
[1757828972611,7.75652167,4675.1,4675.0,1e-08]
[1757828973118,8.21442167,4675.1,4675.0,1e-08]
[1757828973435,8.33402764,4675.1,4675.0,1e-08]
[1757828974234,7.87612764,4675.1,4675.0,1e-08]
[1757828974707,8.33402764,4675.1,4675.0,1e-08]
[1757828976595,8.33402764,4675.1,4675.0,0.78180001]
[1757828976596,4.02542764,4675.1,4675.0,0.78180001]
[1757828976898,7.32699167,4675.1,4675.0,1.24560001]
[1757828977194,7.44659764,4675.1,4675.0,1.24560001]
[1757828977396,7.44679385,4675.1,4675.0,1.24560001]
[1757828978832,1.76280218,4675.1,4675.0,0.78180001]
[1757828979033,5.188,4675.1,4675.0,1.24560001]
[1757828979601,1.643,4675.1,4675.0,1.24560001]
[1757828979801,5.2944,4675.1,4675.0,1.37846001]
[1757828980529,5.2944,4675.1,4675.0,0.91466001]
[1757828980763,5.2944,4675.1,4675.0,1.37846001]
[1757828984634,5.2944,4675.1,4675.0,0.42446001]
[1757828984945,5.2944,4675.1,4675.0,0.29160001]
[1757828989355,7.73729167,4675.1,4675.0,1e-08]
[1757828989668,8.79926709,4675.1,4675.0,1e-08]
[1757828990179,8.7992748,4675.1,4675.0,1e-08]
[1757828995675,8.7992994,4675.1,4675.0,1e-08]
[1757828996945,8.3012994,4675.1,4675.0,1e-08]
[1757828997549,6.16230773,4675.1,4675.0,1e-08]
[1757828997850,8.3012994,4675.1,4675.0,1e-08]
[1757828998049,7.8572994,4675.1,4675.0,1e-08]
[1757828999076,7.73729167,4675.1,4675.0,1e-08]
[1757828999382,7.8573184,4675.1,4675.0,1e-08]
[1757828999562,8.3241184,4675.1,4675.0,1e-08]
[1757829000804,8.8191184,4675.1,4675.0,1e-08]
[1757829001378,8.3241184,4675.1,4675.0,1e-08]
[1757829001747,8.32414993,4675.1,4675.0,1e-08]
[1757829002149,5.71835826,4675.1,4675.0,1e-08]
[1757829002350,7.84184993,4675.1,4675.0,1e-08]
[1757829003189,8.80364993,4675.1,4675.0,1e-08]
[1757829003682,8.30864993,4675.1,4675.0,1e-08]
[1757829005457,9.00382406,4675.1,4675.0,1e-08]
[1757829006374,9.00387265,4675.1,4675.0,1e-08]
[1757829013575,12.00387265,4675.1,4675.0,1e-08]
[1757829013779,12.46528906,4675.1,4675.0,1e-08]
[1757829014109,12.55089239,4675.1,4675.0,1e-08]
[1757829024392,12.55063105,4675.1,4675.0,1e-08]
[1757829028224,12.55042153,4675.1,4675.0,1e-08]
[1757829028443,12.5504205,4675.1,4675.0,1e-08]
[1757829028930,12.5504205,4675.1,4674.7,0.001]
[1757829028931,2.13908318,4674.9,4674.7,0.001]
[1757829029098,3.66492879,4674.8,4674.7,0.001]
[1757829029305,10.26103803,4674.8,4674.7,0.001]
[1757829029516,10.72245444,4674.8,4674.7,0.001]
[1757829029833,14.18585331,4674.8,4674.7,0.001]
[1757829030019,13.72505331,4674.8,4674.7,0.001]
[1757829030203,14.18585331,4674.8,4674.7,0.001]
[1757829032146,14.18579263,4674.8,4674.7,0.001]
[1757829032831,21.20578049,4674.8,4674.7,0.001]
[1757829033029,2.13931199,4674.4,4673.9,0.4749]
[1757829033329,8.68431199,4674.4,4673.9,0.4749]
[1757829033498,9.30614826,4674.4,4673.9,0.4749]
[1757829033918,10.24246467,4674.4,4673.9,0.4749]
[1757829036011,2.45904826,4674.4,4674.3,1.2017]
[1757829036212,5.68431199,4674.4,4674.3,1.2017]
[1757829036440,6.00404826,4674.4,4674.3,1.2017]
[1757829036739,6.00504826,4674.4,4674.3,1.2017]
[1757829037246,6.00503414,4674.4,4674.3,1.2017]
[1757829039945,6.00503414,4674.4,4674.3,0.7683]
[1757829040637,7.26213414,4674.4,4674.3,0.001]
[1757829041008,10.26213414,4674.4,4674.3,0.001]
[1757829041211,10.72258221,4674.4,4674.3,0.001]
[1757829041622,10.80820131,4674.4,4674.3,0.001]
[1757829041824,10.31400131,4674.4,4674.3,0.001]
[1757829043313,10.31428876,4674.4,4674.3,0.001]
[1757829043518,10.80848876,4674.4,4674.3,0.001]
[1757829047323,10.31428876,4674.4,4674.3,0.001]
[1757829051026,10.31429341,4674.4,4674.3,0.001]
[1757829051627,9.85349341,4674.4,4674.3,0.001]
[1757829055940,9.8535597,4674.4,4674.3,0.001]
[1757829057462,9.85381107,4674.4,4674.3,0.001]
[1757829058759,9.85389474,4674.4,4674.3,0.001]
[1757829058949,9.55179474,4674.4,4674.3,0.001]
[1757829059348,9.38584667,4674.4,4674.3,0.001]
[1757829059540,9.84629474,4674.4,4674.3,0.001]
[1757829063044,9.55179474,4674.4,4674.3,0.001]
[1757829063258,9.55179474,4674.4,4674.3,0.2969]
[1757829063463,9.09134667,4674.4,4674.3,1.2192]
[1757829063760,9.55179474,4674.4,4674.3,1.2192]
[1757829063964,9.46617564,4674.4,4674.3,1.2192]
[1757829064131,9.00572757,4674.4,4674.3,1.2192]
[1757829067574,10.64772757,4674.4,4674.3,1.2192]
[1757829067772,11.10817564,4674.4,4674.3,1.2192]
[1757829074657,11.10817564,4674.4,4674.3,0.2969]
[1757829075086,11.10912596,4674.4,4674.3,0.2969]
[1757829076252,11.10913752,4674.4,4674.3,0.2969]
[1757829076458,11.10913693,4674.4,4674.3,0.2969]
[1757829076751,7.56313693,4674.4,4674.3,0.2969]
[1757829076958,7.64673854,4674.4,4674.3,1.2255]
[1757829077977,7.64672298,4674.4,4674.3,1.2255]
[1757829086488,7.64672298,4674.4,4674.3,1.34825]
[1757829086489,1.96241099,4674.4,4674.3,1.34825]
[1757829086694,5.187,4674.4,4674.3,1.34825]
[1757829088019,5.30713831,4674.4,4674.3,1.34825]
[1757829088224,5.187,4674.4,4674.3,1.34825]
[1757829098360,5.187,4674.4,4674.3,1.54758444]
[1757829098361,3.545,4674.4,4674.3,1.54758444]
[1757829099788,0.002,4674.5,4674.3,1.54758444]
[1757829099789,3.547,4674.5,4674.3,1.54758444]
[1757829099938,3.547,4674.5,4674.4,1.5074736]
[1757829100268,3.547,4674.5,4674.4,1.8055736]
[1757829102744,3.547,4674.5,4674.4,0.95873444]
[1757829104979,3.547,4674.5,4674.4,0.49743444]
[1757829105850,3.547,4674.5,4674.4,0.19933444]
[1757829107384,3.547,4674.5,4674.4,0.50713444]
[1757829111858,3.547,4674.5,4674.4,0.19933444]
[1757829112455,4.314,4674.5,4674.4,0.19933444]
[1757829112686,0.1064,4674.4,4674.3,0.001]
[1757829112890,1.0358,4674.4,4674.3,0.20049127]
[1757829113092,0.8602,4674.4,4674.3,0.20049127]
[1757829113890,1.3315,4674.4,4674.3,0.20049127]
[1757829114803,3.47081199,4674.4,4674.3,0.20049127]
[1757829115362,3.59092203,4674.4,4674.3,0.20063116]
[1757829115574,1.45161004,4674.4,4674.3,0.20063116]
[1757829117688,1.3315,4674.4,4674.3,0.20063116]
[1757829118262,0.8602,4674.4,4674.3,0.20063116]
[1757829120512,4.45786249,4674.4,4674.3,0.001]
[1757829126332,7.22433765,4674.4,4674.3,0.001]
[1757829126496,4.9191093,4674.4,4674.3,0.001]
[1757829126694,4.45786249,4674.4,4674.3,0.001]
[1757829127623,4.54347884,4674.4,4674.3,0.001]
[1757829128601,4.54298046,4674.4,4674.3,0.001]
[1757829129705,8.08698046,4674.4,4674.3,0.001]
[1757829133027,11.08698046,4674.4,4674.3,0.001]
[1757829133205,11.54822727,4674.4,4674.3,0.001]
[1757829134839,8.00422727,4674.4,4674.3,0.001]
[1757829135138,8.00422727,4674.4,4674.3,0.3176]
[1757829135139,6.86288046,4674.4,4674.3,0.3176]
[1757829135612,3.31788046,4674.4,4674.3,0.3176]
[1757829135808,6.35097381,4674.4,4674.3,0.3176]
[1757829136010,6.67086411,4674.4,4674.3,0.3176]
[1757829136811,6.67086411,4674.4,4674.3,0.001]
[1757829138375,6.67086411,4674.4,4674.3,0.3073]
[1757829138854,3.12586411,4674.4,4674.3,0.7687]
[1757829139178,6.35097381,4674.4,4674.3,1.2003]
[1757829139477,6.67086411,4674.4,4674.3,1.2003]
[1757829139844,8.31286411,4674.4,4674.3,1.2003]
[1757829140065,8.31274307,4674.4,4674.3,1.2003]
[1757829140647,4.10108125,4674.4,4674.3,1.2003]
[1757829140847,7.32631199,4674.4,4674.3,1.2003]
[1757829141043,7.44627085,4674.4,4674.3,1.2003]
[1757829141666,1.76195886,4674.4,4674.3,1.2003]
[1757829141981,5.187,4674.4,4674.3,1.2003]
[1757829143691,7.32631199,4674.4,4674.3,1.2003]
[1757829144374,5.30695087,4674.4,4674.3,1.2003]
[1757829144787,7.44626286,4674.4,4674.3,1.2003]
[1757829145390,5.30695087,4674.4,4674.3,1.2003]
[1757829145589,5.187,4674.4,4674.3,1.2003]
[1757829146284,5.30695087,4674.4,4674.3,1.2003]
[1757829147290,1.76195087,4674.4,4674.3,1.2003]
[1757829147476,5.186,4674.4,4674.3,1.2003]
[1757829149319,1.642,4674.4,4674.3,1.52019953]
[1757829149479,5.186,4674.4,4674.3,1.52019953]
[1757829149674,3.544,4674.4,4674.3,1.52019953]
[1757829151294,3.544,4674.4,4674.3,2.31219953]
[1757829152209,3.546,4674.5,4674.3,2.31219953]
[1757829152432,3.546,4674.5,4674.3,2.11253]
[1757829153101,3.546,4674.5,4674.3,1.65113]
[1757829153308,3.546,4674.5,4674.4,0.492]
[1757829153517,3.546,4674.5,4674.4,0.7958]
[1757829154916,3.546,4674.5,4674.4,1.2653]
[1757829155115,3.546,4674.5,4674.4,1.69730053]
[1757829162237,3.546,4674.5,4674.4,1.22780053]
[1757829164220,3.546,4674.5,4674.4,0.99532526]
[1757829164742,3.546,4674.5,4674.4,0.7958]
[1757829165137,3.546,4674.5,4674.4,0.99537909]
[1757829165337,3.546,4674.5,4674.4,0.50337909]
[1757829165744,0.002,4674.5,4674.4,4.38658419]
[1757829166050,0.002,4674.5,4674.4,5.09728857]
[1757829166351,0.002,4674.5,4674.4,5.18287012]
[1757829171059,0.002,4674.5,4674.4,3.04355813]
[1757829171275,0.002,4674.5,4674.4,5.18287012]
[1757829175764,0.002,4674.5,4674.4,5.28927012]
[1757829175934,0.002,4674.5,4674.4,4.82027012]
[1757829176341,0.002,4674.5,4674.4,5.26167012]
[1757829181081,0.002,4674.5,4674.4,4.82027012]
[1757829181476,0.002,4674.5,4674.4,4.35877012]
[1757829182063,0.002,4674.5,4674.4,4.35891895]
[1757829182261,0.002,4674.5,4674.4,2.21960696]
[1757829182498,0.002,4674.5,4674.4,0.99172792]
[1757829182499,1.1926,4674.5,4674.4,0.99172792]
[1757829184270,0.7359,4674.5,4674.4,0.99172792]
[1757829184476,0.7359,4674.5,4674.4,3.13103991]
[1757829184665,0.291,4674.5,4674.4,0.99172792]
[1757829186173,0.002,4674.5,4674.4,3.13103991]
[1757829186373,0.002,4674.5,4674.4,3.9690227]
[1757829188480,0.002,4674.5,4674.4,5.1908227]
[1757829188662,0.002,4674.5,4674.4,4.7494227]
[1757829191882,0.002,4674.5,4674.4,5.1908227]
[1757829192799,0.291,4674.5,4674.4,1.82990997]
[1757829193005,1.1926,4674.5,4674.4,0.99192718]
[1757829196096,1.1926,4674.5,4674.4,3.13123917]
[1757829196305,0.002,4674.5,4674.4,3.13123917]
[1757829196495,0.002,4674.5,4674.4,3.41843917]
[1757829196805,0.002,4674.5,4674.4,5.54640133]
[1757829199230,0.002,4674.5,4674.4,4.64160133]
[1757829199801,0.002,4674.5,4674.4,2.21508934]
[1757829199802,0.3073,4674.5,4674.4,2.21508934]
[1757829200023,0.3073,4674.5,4674.4,0.99192718]
[1757829200236,0.7656,4674.5,4674.4,3.13123917]
[1757829202529,0.3073,4674.5,4674.4,3.13123917]
[1757829202741,0.7656,4674.5,4674.4,3.13123917]
[1757829202898,1.2348,4674.5,4674.4,3.13123917]
[1757829203102,1.2348,4674.5,4674.4,0.99192718]
[1757829203840,1.2348,4674.5,4674.4,3.13123917]
[1757829206138,1.2348,4674.5,4674.4,0.99192718]
[1757829206432,1.2348,4674.5,4674.4,3.13123917]
[1757829206615,1.2348,4674.5,4674.4,0.99192718]
[1757829207205,0.7656,4674.5,4674.4,0.99192718]
[1757829208237,1.2348,4674.5,4674.4,0.99192718]
[1757829208773,0.3073,4674.5,4674.4,0.99192718]
[1757829209823,0.3073,4674.5,4674.4,3.13123917]
[1757829210027,0.002,4674.5,4674.4,5.06735113]
[1757829210742,0.002,4674.5,4674.4,4.61075113]
[1757829213542,0.002,4674.5,4674.4,3.41843917]
[1757829213727,0.3073,4674.5,4674.4,3.13123917]
[1757829213927,0.7656,4674.5,4674.4,3.13123917]
[1757829214842,0.7656,4674.5,4674.4,0.99192718]
[1757829215246,0.7656,4674.5,4674.4,3.13123917]
[1757829215774,0.3073,4674.5,4674.4,3.13123917]
[1757829216875,0.002,4674.5,4674.4,3.13123917]
[1757829218282,0.3073,4674.5,4674.4,3.13123917]
[1757829219370,0.3073,4674.5,4674.4,0.99192718]
[1757829219940,0.7765,4674.5,4674.4,0.99192718]
[1757829220270,1.2348,4674.5,4674.4,0.99192718]
[1757829220880,1.2348,4674.5,4674.4,0.19992718]
[1757829222967,1.2348,4674.5,4674.4,0.19999181]
[1757829224139,0.3073,4674.5,4674.4,2.3393038]